Workbook

Sheet (매매아파트)지수생성기
E2: ★초록색칸과 노란색칸을 하기의 설명대로 입력하고 '계산하기' 버튼을 누르면 정상주택가격상승분과 산정~종료 상승률이 자동으로 산정됩니다. *(초록색) U열 3~5행에 하이픈(-)을 넣은 각 시점을 입력합니다.(해당 시점을 yyyy-mm-dd 형식으로 작성) - (유의) 이미 준공이 완료된 단지의 경우 '산정시점'은 '준공(예정)일'으로 합니다.(산정시점=준공(예정)일) *(노란색) 해당시군구를 선택해 주세요(D열 8행, D열 23행) *(참고)주택매매지수 통계 2023.12월까지 공표 자료 활용
T3: 조합설립인가일 | U3: 2018-03-19
T4: 산정시점
E5: 공시일 | F5: 개시시점 | T5: 준공(예정)일
E6: =E7 -> 0 | F6: =F7 -> 0 | G6: 0 | H6: 0 | I6: 0 | J6: 0 | K6: 0 | L6: 0 | M6: 0 | N6: 0 | O6: 0 | P6: =P7 -> 0 | Q6: =Q7 -> 0 | R6: =R7 -> 0
B7: 개시~산정 | D7: 구분
C8: =VLOOKUP(D8,'일자별 지수'!$A$11:$B$237,2,FALSE) -> 2 | D8: 전국 | E8: =HLOOKUP(E7,'일자별 지수'!$D$10:$GPQ$237,$C$8,FALSE) ->  | F8: =HLOOKUP(F7,'일자별 지수'!$D$10:$GPQ$237,$C$8,FALSE) -> 
D9: 변동분 | F9: =ROUND((F8-E8)/E8,5) -> 
D10: 일수비 | F10: =ROUND(F12/F13,5) -> 0
D11: 소수화 | F11: =1+F9 -> 
D12: 해당일수 | F12: =F7-E7 -> 0
D13: 전체일수 | F13: =IF(AND(E6>$F$78,E6<$F$79),366,IF(AND(E6>$F$81,E6<$F$82),366,IF(AND(E6>$F$84,E6<$F$85),366,IF(AND(E6>$F$87,E6<$F$88),366,IF(AND(E6>$F$90,E6<$F$91),366,365))))) -> 365 | G13: 365 | H13: 365 | I13: 365 | J13: 365 | K13: 365 | L13: 365 | M13: 365 | N13: 365 | O13: 365 | P13: 365 | Q13: 365 | R13: 365
D15: 개시~산정 연평균 | E15: =ROUND(SUM(G9:AH9)/SUM(G10:AH10),5) -> 
E20: 산정시점
E21: =E22 -> 0 | F21: =F22 -> 0 | G21: =G22 -> 0 | H21: =H22 -> 0 | I21: =I22 -> 0 | J21: =J22 -> 0 | K21: =K22 -> 0 | L21: =L22 -> 0 | M21: =M22 -> 0 | N21: =N22 -> 0 | O21: =O22 -> 0 | P21: =P22 -> 0 | Q21: =Q22 -> 0 | R21: =R22 -> 0
B22: 산정~종료 | D22: 구분
C23: =VLOOKUP(D23,'일자별 지수'!$A$11:$B$237,2,FALSE) -> 2 | D23: 전국 | E23: =HLOOKUP(E22,'일자별 지수'!$D$10:$GPQ$237,$C$8,FALSE) ->  | F23: =ROUND(E23+E23*$E$15*F25,3) -> 
D24: 변동분 | F24: =ROUND((F23-E23)/E23,5) -> 
D25: 일수비 | F25: =ROUND(F27/F28,5) -> 0
D26: 소수화 | F26: =1+F24 -> 
D27: 해당일수 | F27: =F22-E22 -> 0
D28: 전체일수 | F28: =IF(AND(E21>$F$78,E21<$F$79),366,IF(AND(E21>$F$81,E21<$F$82),366,IF(AND(E21>$F$84,E21<$F$85),366,IF(AND(E21>$F$87,E21<$F$88),366,IF(AND(E21>$F$90,E21<$F$91),366,365))))) -> 365 | G28: 365 | H28: 365 | I28: 365 | J28: 365 | K28: 365 | L28: 365 | M28: 365 | N28: 365 | O28: 365 | P28: 365 | Q28: 365 | R28: 365
D30: 산정~종료 상승률 | F30: =ROUND(PRODUCT(F26:R26),5) ->  | H30: 개시~종료 상승률 | J30: =ROUND(PRODUCT(G11:R11,F26:R26),5) ->  | L30: 정상주택가격상승분 | N30: =J30-1 -> 
B33: 산정예시 | D33: (조합설립인가일) 2018-04-18 | F33: (산정시점) | G33: 2023-07-01 | H33: (준공예정일) | I33: 2026-06-30
E35: 공시일 | F35: 개시시점
E36: =E37 -> 43101 | F36: =F37 -> 43209 | G36: =G37 -> 43466 | H36: =H37 -> 43831 | I36: =I37 -> 44197 | J36: =J37 -> 44562 | K36: =K37 -> 44927 | L36: =L37 -> 45108 | M36: =M37 -> 0 | N36: =N37 -> 0 | O36: =O37 -> 0 | P36: =P37 -> 0 | Q36: =Q37 -> 0 | R36: =R37 -> 0
B37: 개시~산정 | D37: 구분 | E37: 2018-01-01 | F37: 2018-04-19 | G37: 2019-01-01 | H37: 2020-01-01 | I37: 2021-01-01 | J37: 2022-01-01 | K37: 2023-01-01 | L37: 2023-07-01
C38: =VLOOKUP(D38,'일자별 지수'!$A$11:$B$237,2,FALSE) -> 35 | D38: 서울동작구 | E38: =HLOOKUP(E37,'일자별 지수'!$D$10:$GNF$237,$C$8,FALSE) -> 87.771 | F38: =HLOOKUP(F37,'일자별 지수'!$D$10:$GNF$237,$C$8,FALSE) -> 88.054 | G38: =HLOOKUP(G37,'일자별 지수'!$D$10:$GNF$237,$C$8,FALSE) -> 87.641 | H38: =HLOOKUP(H37,'일자별 지수'!$D$10:$GNF$237,$C$8,FALSE) -> 86.707 | I38: =HLOOKUP(I37,'일자별 지수'!$D$10:$GNF$237,$C$8,FALSE) -> 93.664 | J38: =HLOOKUP(J37,'일자별 지수'!$D$10:$GNF$237,$C$8,FALSE) -> 106.204 | K38: =HLOOKUP(K37,'일자별 지수'!$D$10:$GNF$237,$C$8,FALSE) -> 98.174 | L38: =HLOOKUP(L37,'일자별 지수'!$D$10:$GNF$237,$C$8,FALSE) -> 92.676
D39: 변동분 | F39: =ROUND((F38-E38)/E38,5) -> 0.00322 | G39: =ROUND((G38-F38)/F38,5) -> -0.00469 | H39: =ROUND((H38-G38)/G38,5) -> -0.01066 | I39: =ROUND((I38-H38)/H38,5) -> 0.08024 | J39: =ROUND((J38-I38)/I38,5) -> 0.13388 | K39: =ROUND((K38-J38)/J38,5) -> -0.07561 | L39: =ROUND((L38-K38)/K38,5) -> -0.056
D40: 일수비 | F40: =ROUND(F42/F43,5) -> 0.29589 | G40: =ROUND(G42/G43,5) -> 0.70411 | H40: 1 | I40: 1 | J40: 1 | K40: 1 | L40: 0.49589
D41: 소수화 | F41: =1+F39 -> 1.00322 | G41: 0.99531 | H41: 0.98934 | I41: 1.08024 | J41: 1.13388 | K41: 0.92439 | L41: 0.944
D42: 해당일수 | F42: =F37-E37 -> 108 | G42: =G37-F37 -> 257 | H42: =H37-G37 -> 365 | I42: =I37-H37 -> 366 | J42: =J37-I37 -> 365 | K42: =K37-J37 -> 365 | L42: =L37-K37 -> 181
D43: 전체일수 | F43: =IF(AND(E36>$F$78,E36<$F$79),366,IF(AND(E36>$F$81,E36<$F$82),366,IF(AND(E36>$F$84,E36<$F$85),366,IF(AND(E36>$F$87,E36<$F$88),366,IF(AND(E36>$F$90,E36<$F$91),366,365))))) -> 365 | G43: 365 | H43: 365 | I43: 366 | J43: 365 | K43: 365 | L43: 365 | M43: 365 | N43: 365 | O43: 365 | P43: 365 | Q43: 365 | R43: 365
D45: 개시~산정 연평균 | E45: =ROUND(SUM(G39:AH39)/SUM(G40:AH40),5) -> 0.01292
E48: 산정시점
E49: =E50 -> 45108 | F49: =F50 -> 45292 | G49: =G50 -> 45658 | H49: =H50 -> 46023 | I49: =I50 -> 46204 | J49: =J50 -> 0 | K49: =K50 -> 0 | L49: =L50 -> 0 | M49: =M50 -> 0 | N49: =N50 -> 0 | O49: =O50 -> 0 | P49: =P50 -> 0 | Q49: =Q50 -> 0 | R49: =R50 -> 0
B50: 산정~종료 | D50: 구분 | E50: =L37 -> 2023-07-01 | F50: 2024-01-01 | G50: 2025-01-01 | H50: 2026-01-01 | I50: 2026-07-01
C51: =VLOOKUP(D51,'일자별 지수'!$A$11:$B$237,2,FALSE) -> 35 | D51: 서울동작구 | E51: =HLOOKUP(E50,'일자별 지수'!$D$10:$GNF$237,$C$8,FALSE) -> 92.676 | F51: =ROUND(E51+E51*$E$45*F53,3) -> 93.28 | G51: =ROUND(F51+F51*$E$45*G53,3) -> 94.485 | H51: 95.706 | I51: 96.319
D52: 변동분 | F52: =ROUND((F51-E51)/E51,5) -> 0.00652 | G52: =ROUND((G51-F51)/F51,5) -> 0.01292 | H52: =ROUND((H51-G51)/G51,5) -> 0.01292 | I52: =ROUND((I51-H51)/H51,5) -> 0.00641
D53: 일수비 | F53: =ROUND(F55/F56,5) -> 0.50411 | G53: =ROUND(G55/G56,5) -> 1 | H53: 1 | I53: 0.49589
D54: 소수화 | F54: =1+F52 -> 1.00652 | G54: =1+G52 -> 1.01292 | H54: 1.01292 | I54: 1.00641
D55: 해당일수 | F55: =F50-E50 -> 184 | G55: =G50-F50 -> 366 | H55: =H50-G50 -> 365 | I55: =I50-H50 -> 181
D56: 전체일수 | F56: =IF(AND(E49>$F$78,E49<$F$79),366,IF(AND(E49>$F$81,E49<$F$82),366,IF(AND(E49>$F$84,E49<$F$85),366,IF(AND(E49>$F$87,E49<$F$88),366,IF(AND(E49>$F$90,E49<$F$91),366,365))))) -> 365 | G56: 366 | H56: 365 | I56: 365 | J56: 365 | K56: 365 | L56: 365 | M56: 365 | N56: 365 | O56: 365 | P56: 365 | Q56: 365 | R56: 365
D58: 산정~종료 상승률 | F58: =ROUND(PRODUCT(F54:R54),5) -> 1.03932 | H58: 개시~종료 상승률 | J58: =ROUND(PRODUCT(G41:R41,F54:R54),5) -> 1.09387 | L58: 정상주택가격상승분 | N58: =J58-1 -> 0.09387
D78: 2012-01-01 | E78: 40909 | F78: =E78-1 -> 40908 | G78: @>
D79: 2013-01-01 | E79: 41275 | F79: =E79-1 -> 41274 | G79: <'@
D81: 2016-01-01 | E81: 42370 | F81: 42369 | G81: @>
D82: 2017-01-01 | E82: 42736 | F82: 42735 | G82: <'@
D84: 2020-01-01 | E84: 43831 | F84: 43830 | G84: @>
D85: 2021-01-01 | E85: 44197 | F85: 44196 | G85: <'@
D87: 2024-01-01 | E87: 45292 | F87: 45291 | G87: @>
D88: 2025-01-01 | E88: 45658 | F88: 45657 | G88: <'@
D90: 2028-01-01 | E90: 46753 | F90: 46752 | G90: @>
D91: 2029-01-01 | E91: 47119 | F91: 47118 | G91: <'@

Sheet 일자별 지수 (hidden)
GOL7: 31 | GPQ7: 31
... 8 more rows

Sheet (참고)연도별지수 (hidden)
A1: * 통계표명 : | B1: 월간_매매가격지수_아파트
A2: * 수록기간 : | B2: 2003년 11월 ~ 2023년 10월
A3: * 조회기간 : | B3: 2003년 11월 ~ 2023년 10월
A4: * 출처 : | B4: 한국부동산원
A5: * 자료다운일자 : | B5: 2023.12.04 04:31:55
A6: * 단위 : | B6: 지수
E10: 2010-01-01 | F10: 2011-01-01 | G10: 2012-01-01 | H10: 2013-01-01 | I10: 2014-01-01 | J10: 2015-01-01 | K10: 2016-01-01 | L10: 2017-01-01 | M10: 2018-01-01 | N10: 2019-01-01 | O10: 2020-01-01 | P10: 2021-01-01 | Q10: 2022-01-01 | R10: 2023-01-01
A11: 전국 | E11: 73.573 | F11: 75.141 | G11: 81.176 | H11: 79.186 | I11: 80.088 | J11: 82.182 | K11: 86.116 | L11: 86.765 | M11: 87.771 | N11: 87.641 | O11: 86.707 | P11: 93.664 | Q11: 106.204 | R11: 98.174
A12: 수도권 | E12: 78.195 | F12: 75.983 | G12: 76.025 | H12: 71.489 | I12: 71.261 | J12: 72.999 | K12: 77.455 | L12: 78.885 | M12: 81.206 | N12: 83.755 | O12: 84.104 | P12: 92.031 | Q12: 107.908 | R12: 97.463
A13: 지방권 | E13: 67.267 | F13: 72.864 | G13: 86.138 | H13: 87.181 | I13: 89.466 | J13: 91.96 | K13: 95.197 | L13: 94.933 | M13: 94.452 | N13: 91.462 | O13: 89.229 | P13: 95.228 | Q13: 104.64 | R13: 98.841
A14: 6대광역시 | E14: 63.003 | F14: 66.952 | G14: 76.309 | H14: 75.614 | I14: 77.44 | J14: 79.846 | K14: 83.984 | L14: 84.76 | M14: 85.586 | N14: 84.955 | O14: 85.032 | P14: 92.911 | Q14: 105.389 | R14: 95.836
A15: 5대광역시 | E15: 59.264 | F15: 64.443 | G15: 76.353 | H15: 76.637 | I15: 78.882 | J15: 81.346 | K15: 85.595 | L15: 86.296 | M15: 87.022 | N15: 86.248 | O15: 86.254 | P15: 94.057 | Q15: 104.238 | R15: 95.77
A16: 9개도 | E16: 77.678 | F16: 78.671 | G16: 85.036 | H16: 83.485 | I16: 84.358 | J16: 86.543 | K16: 90.027 | L16: 89.948 | M16: 89.896 | N16: 88.143 | O16: 85.972 | P16: 93.12 | Q16: 107.326 | R16: 100.3
A17: 8개도 | E17: 75.964 | F17: 81.895 | G17: 96.531 | H17: 98.412 | I17: 100.695 | J17: 103.24 | K17: 105.411 | L17: 104.119 | M17: 102.283 | N17: 96.984 | O17: 92.606 | P17: 96.133 | Q17: 105.271 | R17: 102.155
A18: 서울 | E18: 81.223 | F18: 79.575 | G18: 79.094 | H18: 73.691 | I18: 73.116 | J18: 74.508 | K18: 79.466 | L18: 82.036 | M18: 86.505 | N18: 92.565 | O18: 94.031 | P18: 96.837 | Q18: 104.377 | R18: 96.336
B19: 강북지역 | E19: 83.565 | F19: 81.443 | G19: 81.135 | H19: 77.019 | I19: 75.864 | J19: 77.202 | K19: 81.784 | L19: 83.866 | M19: 86.994 | N19: 92.635 | O19: 93.525 | P19: 97.009 | Q19: 104.06 | R19: 94.271
C20: 도심권 | H20: 81.506 | I20: 79.012 | J20: 78.811 | K20: 81.053 | L20: 83.031 | M20: 86.723 | N20: 94.965 | O20: 96.067 | P20: 98.318 | Q20: 104.52 | R20: 97.449
D21: 종로구 | E21: 81.296 | F21: 80.879 | G21: 81.685 | H21: 81.408 | I21: 80.866 | J21: 81.056 | K21: 83.036 | L21: 84.931 | M21: 88.474 | N21: 95.361 | O21: 96.873 | P21: 99.096 | Q21: 103.653 | R21: 95.954
D22: 중구 | E22: 84.365 | F22: 84.366 | G22: 84.214 | H22: 77.836 | I22: 77.149 | J22: 78.156 | K22: 81.515 | L22: 82.958 | M22: 86.462 | N22: 95.027 | O22: 96.16 | P22: 98.266 | Q22: 103.463 | R22: 93.823
D23: 용산구 | E23: 89.281 | F23: 87.834 | G23: 87.6 | H23: 83.435 | I23: 79.281 | J23: 78.328 | K23: 80.075 | L23: 82.363 | M23: 86.205 | N23: 94.744 | O23: 95.671 | P23: 98.02 | Q23: 105.513 | R23: 100.288
C24: 동북권 | H24: 76.769 | I24: 75.569 | J24: 76.991 | K24: 82.257 | L24: 84.234 | M24: 87.238 | N24: 92.169 | O24: 92.903 | P24: 96.703 | Q24: 103.961 | R24: 93.688
D25: 성동구 | E25: 79.106 | F25: 78.418 | G25: 78.519 | H25: 72.966 | I25: 72.986 | J25: 74.615 | K25: 80.841 | L25: 82.501 | M25: 87.632 | N25: 94.352 | O25: 95.035 | P25: 97.899 | Q25: 102.25 | R25: 97.639
D26: 광진구 | E26: 81.283 | F26: 81.002 | G26: 81.179 | H26: 77.104 | I26: 74.28 | J26: 75.502 | K26: 80.94 | L26: 82.72 | M26: 88.329 | N26: 93.762 | O26: 95.251 | P26: 97.628 | Q26: 102.013 | R26: 97.091
D27: 동대문구 | E27: 79.037 | F27: 80.325 | G27: 79.89 | H27: 75.814 | I27: 74.678 | J27: 75.977 | K27: 82.934 | L27: 84.929 | M27: 87.428 | N27: 93.162 | O27: 93.711 | P27: 97.611 | Q27: 102.542 | R27: 94.322
D28: 중랑구 | E28: 88.356 | F28: 88.254 | G28: 88.511 | H28: 83.959 | I28: 83.33 | J28: 83.605 | K28: 87.559 | L28: 88.703 | M28: 90.403 | N28: 94.183 | O28: 94.627 | P28: 98.006 | Q28: 103.558 | R28: 95.668
D29: 성북구 | E29: 82.885 | F29: 80.584 | G29: 80.76 | H29: 79.279 | I29: 77.004 | J29: 77.775 | K29: 81.773 | L29: 84.243 | M29: 86.296 | N29: 93.646 | O29: 94.589 | P29: 97.661 | Q29: 104.24 | R29: 92.934
D30: 강북구 | E30: 85.029 | F30: 83.093 | G30: 82.243 | H30: 77.565 | I30: 76.272 | J30: 77.093 | K30: 81.644 | L30: 83.07 | M30: 85.035 | N30: 91.659 | O30: 92.996 | P30: 97.649 | Q30: 102.305 | R30: 91.826
D31: 도봉구 | E31: 91.141 | F31: 86.482 | G31: 86.305 | H31: 79.159 | I31: 77.389 | J31: 78.744 | K31: 83.079 | L31: 84.862 | M31: 87.392 | N31: 91.645 | O31: 92.091 | P31: 96.073 | Q31: 104.284 | R31: 91.369
D32: 노원구 | E32: 83.5 | F32: 79.649 | G32: 78.708 | H32: 73.68 | I32: 72.977 | J32: 75.113 | K32: 80.92 | L32: 83.257 | M32: 86.375 | N32: 89.563 | O32: 90.24 | P32: 94.906 | Q32: 105.94 | R32: 92.17
C33: 서북권 | H33: 75.919 | I33: 75.539 | J33: 77.288 | K33: 80.371 | L33: 82.91 | M33: 86.234 | N33: 93.143 | O33: 94.472 | P33: 97.443 | Q33: 104.183 | R33: 94.798
D34: 은평구 | E34: 85.663 | F34: 81.895 | G34: 81.293 | H34: 79.19 | I34: 77.86 | J34: 79.288 | K34: 82.621 | L34: 85.056 | M34: 88.136 | N34: 93.696 | O34: 94.647 | P34: 97.634 | Q34: 104.275 | R34: 93.756
D35: 서대문구 | E35: 81.461 | F35: 80.471 | G35: 80.495 | H35: 77.831 | I35: 78.262 | J35: 79.582 | K35: 82.863 | L35: 85.66 | M35: 88.458 | N35: 94.718 | O35: 95.762 | P35: 98.413 | Q35: 103.37 | R35: 93.94
D36: 마포구 | E36: 74.864 | F36: 73.728 | G36: 73.779 | H36: 72.135 | I36: 71.934 | J36: 74.161 | K36: 76.927 | L36: 79.385 | M36: 83.188 | N36: 91.552 | O36: 93.377 | P36: 96.569 | Q36: 104.757 | R36: 96.395
B37: 강남지역 | E37: 79.294 | F37: 78.019 | G37: 77.4 | H37: 71.031 | I37: 70.91 | J37: 72.344 | K37: 77.588 | L37: 80.536 | M37: 86.1 | N37: 92.509 | O37: 94.463 | P37: 96.69 | Q37: 104.651 | R37: 98.153
C38: 서남권 | H38: 73.063 | I38: 72.722 | J38: 73.802 | K38: 78.795 | L38: 81.689 | M38: 86.133 | N38: 92.412 | O38: 93.879 | P38: 97.342 | Q38: 103.913 | R38: 97.293
D39: 양천구 | E39: 81.281 | F39: 79.258 | G39: 77.854 | H39: 72.355 | I39: 70.922 | J39: 72.342 | K39: 76.931 | L39: 80.011 | M39: 85.543 | N39: 91.492 | O39: 93.719 | P39: 96.928 | Q39: 102.605 | R39: 96.964
D40: 강서구 | E40: 83.012 | F40: 80.04 | G40: 78.592 | H40: 71.902 | I40: 71.683 | J40: 72.064 | K40: 77.949 | L40: 81.617 | M40: 86.022 | N40: 93.736 | O40: 94.56 | P40: 97.861 | Q40: 105.005 | R40: 97.564
D41: 구로구 | E41: 80.101 | F41: 78.648 | G41: 78.458 | H41: 74.942 | I41: 74.538 | J41: 75.137 | K41: 80.957 | L41: 83.299 | M41: 86.935 | N41: 92.126 | O41: 93.527 | P41: 97.962 | Q41: 104.133 | R41: 97.894
D42: 금천구 | E42: 83.783 | F42: 81.596 | G42: 81.077 | H42: 78.564 | I42: 78.123 | J42: 79.174 | K42: 83.892 | L42: 86.338 | M42: 89.627 | N42: 93.113 | O42: 94.756 | P42: 98.068 | Q42: 103.224 | R42: 95.567
D43: 영등포구 | E43: 80.042 | F43: 78.526 | G43: 78.043 | H43: 73.039 | I43: 71.454 | J43: 73.166 | K43: 77.87 | L43: 80.277 | M43: 85.142 | N43: 92.246 | O43: 94.078 | P43: 97.279 | Q43: 103.602 | R43: 96.576
D44: 동작구 | E44: 77.615 | F44: 77.04 | G44: 76.741 | H44: 69.738 | I44: 71.131 | J44: 73.102 | K44: 77.446 | L44: 80.026 | M44: 84.567 | N44: 92.45 | O44: 94.013 | P44: 96.432 | Q44: 104.846 | R44: 98.904
D45: 관악구 | E45: 80.566 | F45: 79.363 | G45: 79.514 | H45: 74.054 | I45: 75.49 | J45: 76.043 | K45: 80.211 | L45: 83.534 | M45: 87.323 | N45: 91.655 | O45: 92.43 | P45: 96.796 | Q45: 103.432 | R45: 96.561
C46: 동남권 | H46: 68.922 | I46: 69.016 | J46: 70.794 | K46: 76.278 | L46: 79.274 | M46: 86.066 | N46: 92.619 | O46: 95.113 | P46: 95.972 | Q46: 105.493 | R46: 99.134
D47: 서초구 | E47: 77.364 | F47: 77.905 | G47: 78.537 | H47: 74.059 | I47: 72.442 | J47: 73.919 | K47: 79.665 | L47: 82.615 | M47: 87.697 | N47: 93.689 | O47: 95.666 | P47: 95.751 | Q47: 105.739 | R47: 102.781
D48: 강남구 | E48: 78.343 | F48: 77.062 | G48: 76.176 | H48: 66.888 | I48: 66.738 | J48: 69.108 | K48: 75.564 | L48: 80.155 | M48: 87.274 | N48: 93.029 | O48: 96.023 | P48: 96.053 | Q48: 105.833 | R48: 100.906
D49: 송파구 | E49: 76.818 | F49: 75.676 | G49: 74.927 | H49: 67.578 | I49: 69.359 | J49: 70.613 | K49: 74.272 | L49: 75.832 | M49: 84.325 | N49: 90.679 | O49: 94.196 | P49: 95.594 | Q49: 105.588 | R49: 96.101
D50: 강동구 | E50: 76.917 | F50: 76.425 | G50: 75.648 | H50: 68.282 | I50: 68.222 | J50: 70.069 | K50: 76.575 | L50: 79.223 | M50: 84.712 | N50: 93.824 | O50: 94.399 | P50: 96.764 | Q50: 104.387 | R50: 96.533
A51: 경기 | E51: 76.3 | F51: 73.663 | G51: 74.45 | H51: 70.406 | I51: 70.267 | J51: 72.127 | K51: 76.465 | L51: 77.309 | M51: 78.657 | N51: 79.868 | O51: 79.641 | P51: 90.117 | Q51: 109.501 | R51: 98.411
B52: 경부1권 | H52: 64.208 | I52: 64.238 | J52: 66.333 | K52: 70.622 | L52: 71.401 | M52: 74.485 | N52: 78.923 | O52: 79.655 | P52: 89.126 | Q52: 109.597 | R52: 98.209
C53: 과천시 | E53: 81.051 | F53: 75.066 | G53: 71.087 | H53: 63.605 | I53: 65.171 | J53: 67.824 | K53: 71.242 | L53: 73.33 | M53: 75.214 | N53: 84.501 | O53: 92.756 | P53: 95.011 | Q53: 103.45 | R53: 91.061
C54: 안양시 | E54: 65.867 | F54: 63.391 | G54: 64.118 | H54: 60.698 | I54: 60.411 | J54: 62.956 | K54: 68.183 | L54: 69.117 | M54: 71.51 | N54: 74.773 | O54: 75.658 | P54: 85.791 | Q54: 112.026 | R54: 98.694
D55: 만안구 | E55: 69.306 | F55: 67.398 | G55: 68.354 | H55: 67.241 | I55: 66.114 | J55: 68.275 | K55: 72.824 | L55: 74.056 | M55: 76.3 | N55: 78.532 | O55: 79.892 | P55: 90.229 | Q55: 108.764 | R55: 98.672
D56: 동안구 | E56: 64.139 | F56: 61.461 | G56: 62.095 | H56: 57.727 | I56: 57.776 | J56: 60.462 | K56: 65.937 | L56: 66.74 | M56: 69.19 | N56: 72.901 | O56: 73.558 | P56: 83.584 | Q56: 113.737 | R56: 98.706
C57: 성남시 | E57: 77.018 | F57: 74.532 | G57: 74.068 | H57: 68.096 | I57: 67.627 | J57: 69.617 | K57: 72.307 | L57: 72.932 | M57: 77.982 | N57: 85.5 | O57: 86.896 | P57: 94.856 | Q57: 105.104 | R57: 97.028
D58: 수정구 | E58: 75.873 | F58: 74.22 | G58: 73.569 | H58: 70.701 | I58: 69.89 | J58: 70.26 | K58: 73.019 | L58: 74.118 | M58: 76.656 | N58: 81.81 | O58: 85.141 | P58: 94.514 | Q58: 104.889 | R58: 92.288
D59: 중원구 | E59: 74.127 | F59: 74.184 | G59: 73.523 | H59: 70.187 | I59: 69.743 | J59: 70.495 | K59: 74.394 | L59: 75.033 | M59: 77.185 | N59: 81.025 | O59: 82.67 | P59: 91.972 | Q59: 106.969 | R59: 95.052
D60: 분당구 | E60: 77.753 | F60: 74.78 | G60: 74.363 | H60: 67.58 | I60: 67.141 | J60: 69.521 | K60: 71.976 | L60: 72.548 | M60: 78.555 | N60: 87.38 | O60: 88.269 | P60: 95.587 | Q60: 104.747 | R60: 98.676
C61: 군포시 | E61: 71.277 | F61: 68.443 | G61: 70.059 | H61: 64.875 | I61: 66.21 | J61: 66.987 | K61: 72.982 | L61: 73.74 | M61: 74.626 | N61: 75.078 | O61: 73.48 | P61: 85.447 | Q61: 114.784 | R61: 102.95
C62: 의왕시 | E62: 63.004 | F62: 60.627 | G62: 62.632 | H62: 59.962 | I62: 60.186 | J62: 63.296 | K62: 67.72 | L62: 68.08 | M62: 69.856 | N62: 72.039 | O62: 72.443 | P62: 82.064 | Q62: 113.049 | R62: 94.985
B63: 경부2권 | H63: 67.8 | I63: 67.908 | J63: 69.86 | K63: 73.26 | L63: 73.55 | M63: 73.877 | N63: 76.421 | O63: 77.415 | P63: 91.785 | Q63: 109.163 | R63: 99.28
C64: 안성시 | E64: 80.225 | F64: 79.991 | G64: 85.513 | H64: 92.487 | I64: 97.374 | J64: 100.555 | K64: 104.759 | L64: 104.418 | M64: 103.014 | N64: 94.408 | O64: 89.563 | P64: 91.128 | Q64: 116.073 | R64: 113.035
C65: 용인시 | E65: 77.231 | F65: 73.788 | G65: 73.697 | H65: 68.958 | I65: 68.409 | J65: 69.404 | K65: 71.955 | L65: 72.156 | M65: 72.038 | N65: 76.701 | O65: 77.378 | P65: 92.387 | Q65: 107.529 | R65: 98.918
D66: 처인구 | E66: 95.567 | F66: 92.414 | G66: 92.805 | H66: 88.878 | I66: 87.674 | J66: 86.719 | K66: 90.639 | L66: 91.245 | M66: 90.681 | N66: 87.916 | O66: 88.142 | P66: 92.391 | Q66: 107.878 | R66: 103.466
D67: 기흥구 | E67: 76.09 | F67: 72.18 | G67: 71.16 | H67: 69.174 | I67: 67.968 | J67: 67.988 | K67: 70.094 | L67: 70.289 | M67: 70.401 | N67: 75.194 | O67: 75.451 | P67: 91.152 | Q67: 107.954 | R67: 99.479
D68: 수지구 | E68: 73.284 | F68: 70.18 | G68: 70.68 | H68: 63.394 | I68: 63.549 | J68: 65.747 | K68: 68.404 | L68: 68.525 | M68: 68.28 | N68: 74.348 | O68: 75.62 | P68: 93.687 | Q68: 106.96 | R68: 96.695
C69: 수원시 | E69: 65.489 | F69: 64.808 | G69: 66.626 | H69: 63.585 | I69: 63.887 | J69: 66.634 | K69: 70.747 | L69: 71.177 | M69: 72.109 | N69: 73.896 | O69: 75.826 | P69: 91.277 | Q69: 109.841 | R69: 97.69
D70: 장안구 | E70: 73.895 | F70: 73.246 | G70: 75.653 | H70: 72.822 | I70: 72.529 | J70: 74.091 | K70: 80.664 | L70: 80.971 | M70: 81.72 | N70: 82.581 | O70: 82.619 | P70: 94.607 | Q70: 108.452 | R70: 100.423
D71: 권선구 | E71: 67.248 | F71: 66.709 | G71: 67.782 | H71: 64.369 | I71: 65.387 | J71: 67.961 | K71: 72.123 | L71: 72.616 | M71: 73.591 | N71: 74.12 | O71: 74.613 | P71: 90.117 | Q71: 110.661 | R71: 100.484
D72: 팔달구 | E72: 62.581 | F72: 61.462 | G72: 62.37 | H72: 60.154 | I72: 60.088 | J72: 63.247 | K72: 66.171 | L72: 66.699 | M72: 68.002 | N72: 72.63 | O72: 75.204 | P72: 91.19 | Q72: 109.39 | R72: 100.961
D73: 영통구 | E73: 60.348 | F73: 59.747 | G73: 62.123 | H73: 58.833 | I73: 59.112 | J73: 62.515 | K73: 65.587 | L73: 66.008 | M73: 66.877 | N73: 69.082 | O73: 72.951 | P73: 90.174 | Q73: 110.192 | R73: 93.119
B74: 서해안권 | H74: 71.281 | I74: 71.686 | J74: 73.968 | K74: 78.504 | L74: 79.152 | M74: 79.962 | N74: 79.289 | O74: 78.58 | P74: 88.019 | Q74: 111.999 | R74: 99.078
C75: 부천시 | E75: 74.442 | F75: 73.182 | G75: 72.941 | H75: 68.416 | I75: 68.55 | J75: 70.176 | K75: 73.543 | L75: 74.485 | M75: 75.964 | N75: 79.146 | O75: 81.109 | P75: 89.732 | Q75: 110.798 | R75: 99.06
C76: 안산시 | E76: 68.148 | F76: 67.374 | G76: 68.449 | H76: 66.902 | I76: 67.523 | J76: 70.442 | K76: 77.317 | L76: 77.148 | M76: 77.005 | N76: 70.783 | O76: 71.267 | P76: 80.908 | Q76: 111.195 | R76: 99.252
D77: 상록구 | E77: 68.444 | F77: 68.075 | G77: 69.167 | H77: 67.192 | I77: 68.281 | J77: 70.684 | K77: 77.623 | L77: 78.003 | M77: 77.499 | N77: 71.257 | O77: 71.611 | P77: 80.417 | Q77: 110.979 | R77: 101.546
D78: 단원구 | E78: 67.93 | F78: 66.824 | G78: 67.886 | H78: 66.694 | I78: 66.941 | J78: 70.272 | K78: 77.099 | L78: 76.491 | M78: 76.625 | N78: 70.422 | O78: 71.004 | P78: 81.286 | Q78: 111.359 | R78: 97.543
C79: 시흥시 | E79: 70.999 | F79: 69.831 | G79: 71.051 | H79: 68.075 | I79: 68.186 | J79: 69.938 | K79: 75.432 | L79: 75.807 | M79: 77.291 | N79: 76.129 | O79: 74.271 | P79: 82.193 | Q79: 113.113 | R79: 98.037
C80: 광명시 | E80: 57.321 | F80: 55.133 | G80: 56.007 | H80: 53.151 | I80: 54.28 | J80: 57.764 | K80: 65.255 | L80: 67.01 | M80: 69.46 | N80: 76.685 | O80: 80.129 | P80: 92.315 | Q80: 107.374 | R80: 89.815
C81: 화성시 | E81: 74.291 | F81: 73.599 | G81: 77.237 | H81: 73.061 | I81: 74.063 | J81: 76.016 | K81: 78.12 | L81: 78.715 | M81: 79.406 | N81: 80.532 | O81: 79.658 | P81: 91.959 | Q81: 111.649 | R81: 96.222
C82: 오산시 | E82: 76.235 | F82: 76.542 | G82: 83.39 | H82: 83.184 | I82: 81.913 | J82: 83.392 | K82: 85.453 | L82: 85.723 | M82: 85.168 | N82: 80.67 | O82: 77.976 | P82: 88.928 | Q82: 116.699 | R82: 101.357
C83: 평택시 | E83: 81.028 | F83: 82.472 | G83: 89.722 | H83: 92.651 | I83: 92.664 | J83: 95.079 | K83: 98.193 | L83: 98.738 | M83: 97.875 | N83: 90.513 | O83: 84.045 | P83: 89.027 | Q83: 114.117 | R83: 109.106
B84: 동부1권 | H84: 69.392 | I84: 68.722 | J84: 69.558 | K84: 73.548 | L84: 74.46 | M84: 75.675 | N84: 77.421 | O84: 78.246 | P84: 90.357 | Q84: 107.572 | R84: 95.869
C85: 남양주시 | E85: 78.203 | F85: 74.876 | G85: 75.194 | H85: 70.287 | I85: 69.455 | J85: 70.197 | K85: 73.699 | L85: 74.782 | M85: 75.844 | N85: 75.66 | O85: 75.904 | P85: 87.536 | Q85: 109.3 | R85: 95.806
C86: 구리시 | E86: 64.172 | F86: 62.346 | G86: 63.252 | H86: 59.353 | I86: 58.882 | J86: 60.461 | K86: 64.396 | L86: 65.239 | M86: 66.616 | N86: 72.908 | O86: 76.249 | P86: 92.996 | Q86: 106.363 | R86: 97.883
C87: 하남시 | E87: 69.956 | F87: 68.085 | G87: 68.974 | H87: 62.9 | I87: 63.653 | J87: 65.608 | K87: 72.684 | L87: 72.678 | M87: 74.382 | N87: 80.556 | O87: 82.029 | P87: 94.955 | Q87: 103.25 | R87: 91.741
C88: 광주시 | E88: 91.07 | F88: 85.418 | G88: 85.12 | H88: 82.512 | I88: 81.068 | J88: 80.269 | K88: 84.024 | L88: 85.036 | M88: 86.126 | N88: 84.57 | O88: 83.824 | P88: 91.84 | Q88: 108.399 | R88: 99.459
B89: 동부2권 | H89: 92.392 | I89: 95.288 | J89: 97.589 | K89: 101.866 | L89: 103.54 | M89: 103.838 | N89: 102.451 | O89: 97.456 | P89: 96.623 | Q89: 109.639 | R89: 110.634
C90: 이천시 | E90: 84.33 | F90: 83.229 | G90: 90.068 | H90: 89.155 | I90: 92.667 | J90: 95.671 | K90: 101.402 | L90: 103.151 | M90: 102.975 | N90: 101.066 | O90: 95.774 | P90: 95.521 | Q90: 112.32 | R90: 115.071
C91: 여주시 | H91: 102.627 | I91: 104.843 | J91: 106.163 | K91: 108.146 | L91: 110.178 | M91: 110.684 | N91: 107.344 | O91: 100.375 | P91: 98.136 | Q91: 107.191 | R91: 104.917
B92: 경의권 | H92: 72.742 | I92: 72.091 | J92: 74.124 | K92: 80.06 | L92: 81.506 | M92: 83.426 | N92: 83.071 | O92: 81.247 | P92: 92.301 | Q92: 107.224 | R92: 98.058
C93: 김포시 | E93: 87.403 | F93: 82.332 | G93: 78.811 | H93: 71.486 | I93: 71.636 | J93: 73.429 | K93: 81.302 | L93: 82.125 | M93: 84.687 | N93: 85.315 | O93: 84.279 | P93: 97.546 | Q93: 105.589 | R93: 94.18
C94: 고양시 | E94: 80.712 | F94: 75.299 | G94: 74.821 | H94: 69.694 | I94: 69.049 | J94: 71.49 | K94: 77.112 | L94: 78.824 | M94: 80.567 | N94: 80.52 | O94: 78.66 | P94: 89.77 | Q94: 107.998 | R94: 99.707
D95: 덕양구 | E95: 71.582 | F95: 68.014 | G95: 67.875 | H95: 64.124 | I95: 63.874 | J95: 65.881 | K95: 71.369 | L95: 72.956 | M95: 74.625 | N95: 76.873 | O95: 75.501 | P95: 88.721 | Q95: 108.73 | R95: 95.888
D96: 일산동구 | E96: 80.942 | F96: 75.529 | G96: 75.185 | H96: 71.609 | I96: 70.046 | J96: 73.145 | K96: 79.415 | L96: 81.935 | M96: 83.492 | N96: 81.917 | O96: 80.366 | P96: 90.109 | Q96: 107.397 | R96: 103.432
D97: 일산서구 | E97: 91.709 | F97: 84.068 | G97: 83.1 | H97: 75.158 | I97: 74.68 | J97: 77.175 | K97: 82.547 | L97: 83.872 | M97: 85.828 | N97: 83.959 | O97: 81.309 | P97: 90.764 | Q97: 107.547 | R97: 101.852
C98: 파주시 | E98: 97.527 | F98: 91.54 | G98: 91.585 | H98: 82.608 | I98: 81.221 | J98: 82.012 | K98: 86.838 | L98: 88.038 | M98: 89.812 | N98: 87.346 | O98: 84.716 | P98: 92.823 | Q98: 107.192 | R98: 98.595
B99: 경원권 | H99: 82.018 | I99: 79.556 | J99: 79.799 | K99: 83.171 | L99: 85.061 | M99: 86.359 | N99: 85.854 | O99: 84.586 | P99: 89.13 | Q99: 108.208 | R99: 95.346
C100: 포천시 | H100: 93.841 | I100: 94.379 | J100: 95.482 | K100: 98.853 | L100: 100.017 | M100: 101.245 | N100: 97.433 | O100: 95.203 | P100: 94.716 | Q100: 109.042 | R100: 100.687
C101: 동두천시 | E101: 106.915 | F101: 100.644 | G101: 100.658 | H101: 92.961 | I101: 89.031 | J101: 89.24 | K101: 90.024 | L101: 91.633 | M101: 93.591 | N101: 92.248 | O101: 90.124 | P101: 89.682 | Q101: 107.546 | R101: 95.343
C102: 양주시 | E102: 97.977 | F102: 90.238 | G102: 89.887 | H102: 82.856 | I102: 81.306 | J102: 80.859 | K102: 84.201 | L102: 86.57 | M102: 87.778 | N102: 87.103 | O102: 83.876 | P102: 88.736 | Q102: 109.763 | R102: 93.311
C103: 의정부시 | E103: 89.654 | F103: 84.1 | G103: 82.31 | H103: 78.018 | I103: 75.018 | J103: 75.447 | K103: 79.319 | L103: 81.156 | M103: 82.369 | N103: 82.528 | O103: 82.442 | P103: 88.401 | Q103: 107.443 | R103: 95.611
A104: 인천 | E104: 80.06 | F104: 77.821 | G104: 76.307 | H104: 71.9 | I104: 72.242 | J104: 74.441 | K104: 78.178 | L104: 79.216 | M104: 80.393 | N104: 80.268 | O104: 80.602 | P104: 88.739 | Q104: 109.837 | R104: 96.086
B105: 중구 | E105: 96.917 | F105: 93.251 | G105: 92.492 | H105: 86.14 | I105: 82.98 | J105: 88.034 | K105: 91.051 | L105: 91.82 | M105: 91.658 | N105: 88.506 | O105: 86.725 | P105: 91.315 | Q105: 107.08 | R105: 94.989
B106: 동구 | E106: 93.696 | F106: 92.277 | G106: 91.968 | H106: 88.066 | I106: 86.488 | J106: 88.454 | K106: 91.899 | L106: 93.084 | M106: 94.316 | N106: 93.319 | O106: 91.981 | P106: 93.737 | Q106: 106.226 | R106: 97.589
B107: 미추홀구 | E107: 83.498 | F107: 82.847 | G107: 82.731 | H107: 78.853 | I107: 77.882 | J107: 78.857 | K107: 82.08 | L107: 83.046 | M107: 84.59 | N107: 85.103 | O107: 85.194 | P107: 91.173 | Q107: 108.39 | R107: 98.91
B108: 연수구 | E108: 69.78 | F108: 67.644 | G108: 65.981 | H108: 62.349 | I108: 64.157 | J108: 66.632 | K108: 70.989 | L108: 71.477 | M108: 73.275 | N108: 72.593 | O108: 71.706 | P108: 82.886 | Q108: 113.215 | R108: 94.806
B109: 남동구 | E109: 80.597 | F109: 80.204 | G109: 78.602 | H109: 75.789 | I109: 74.985 | J109: 76.382 | K109: 79.072 | L109: 79.826 | M109: 80.855 | N109: 81.194 | O109: 81.451 | P109: 89.871 | Q109: 107.647 | R109: 94.144
B110: 부평구 | E110: 75.313 | F110: 73.321 | G110: 72.546 | H110: 68.097 | I110: 68.33 | J110: 70.976 | K110: 75.525 | L110: 77.593 | M110: 78.752 | N110: 78.888 | O110: 80.379 | P110: 89.656 | Q110: 110.733 | R110: 98.001
B111: 계양구 | E111: 82.496 | F111: 79.545 | G111: 78.286 | H111: 73.896 | I111: 74.913 | J111: 77.771 | K111: 81.234 | L111: 82.312 | M111: 83.694 | N111: 83.482 | O111: 85.727 | P111: 90.98 | Q111: 111.426 | R111: 99.039
B112: 서구 | E112: 85.359 | F112: 81.207 | G112: 77.77 | H112: 71.041 | I112: 72.161 | J112: 74.204 | K112: 78.128 | L112: 78.912 | M112: 79.539 | N112: 79.562 | O112: 79.692 | P112: 88.105 | Q112: 109.288 | R112: 94.325
A113: 부산 | E113: 59.724 | F113: 69.72 | G113: 84.325 | H113: 80.96 | I113: 80.655 | J113: 82.025 | K113: 85.927 | L113: 89.636 | M113: 91.214 | N113: 87.88 | O113: 85.725 | P113: 93.383 | Q113: 105.629 | R113: 98.655
B114: 중부산권 | H114: 80.165 | I114: 79.524 | J114: 81.463 | K114: 86.136 | L114: 89.622 | M114: 91.229 | N114: 88.295 | O114: 86.559 | P114: 94.551 | Q114: 104.257 | R114: 97.129
C115: 중구 | E115: 77.571 | F115: 81.704 | G115: 95.071 | H115: 94.511 | I115: 94.873 | J115: 96.049 | K115: 98.742 | L115: 101.264 | M115: 104.039 | N115: 101.315 | O115: 99.171 | P115: 98.119 | Q115: 101.997 | R115: 98.932
C116: 서구 | E116: 73.998 | F116: 78.657 | G116: 93.559 | H116: 93.118 | I116: 93.08 | J116: 93.916 | K116: 97.203 | L116: 99.503 | M116: 101.709 | N116: 99.157 | O116: 95.625 | P116: 97.158 | Q116: 102.427 | R116: 98.132
C117: 동구 | E117: 73.246 | F117: 77.611 | G117: 88.939 | H117: 89.329 | I117: 90.05 | J117: 91.598 | K117: 95.538 | L117: 98.446 | M117: 100.031 | N117: 96.22 | O117: 94.067 | P117: 96.407 | Q117: 103.179 | R117: 98.563
C118: 영도구 | E118: 77.59 | F118: 86.901 | G118: 101.042 | H118: 97.864 | I118: 97.443 | J118: 98.386 | K118: 100.419 | L118: 101.857 | M118: 102.891 | N118: 99.463 | O118: 96.438 | P118: 96.539 | Q118: 103.402 | R118: 99.787
C119: 부산진구 | E119: 56.799 | F119: 67.181 | G119: 82.483 | H119: 80.322 | I119: 79.943 | J119: 82.03 | K119: 87.137 | L119: 90.27 | M119: 91.985 | N119: 89.016 | O119: 85.988 | P119: 94.979 | Q119: 103.654 | R119: 95.691
C120: 남구 | E120: 51.479 | F120: 60.941 | G120: 76.372 | H120: 75.82 | I120: 73.935 | J120: 76.423 | K120: 81.883 | L120: 85.804 | M120: 87.821 | N120: 84.708 | O120: 84.033 | P120: 93.109 | Q120: 102.268 | R120: 95.92
C121: 연제구 | E121: 58.363 | F121: 65.214 | G121: 76.792 | H121: 75.76 | I121: 75.437 | J121: 77.346 | K121: 82.31 | L121: 86.677 | M121: 87.665 | N121: 84.909 | O121: 83.985 | P121: 92.991 | Q121: 107.29 | R121: 99.028
C122: 수영구 | E122: 60.438 | F122: 66.237 | G122: 75.832 | H122: 74.429 | I122: 74.254 | J122: 75.847 | K122: 79.766 | L122: 83.748 | M122: 85.164 | N122: 82.714 | O122: 82.688 | P122: 94.768 | Q122: 107.213 | R122: 97.563
B123: 동부산권 | H123: 76.197 | I123: 75.45 | J123: 76.549 | K123: 81.084 | L123: 85.504 | M123: 86.626 | N123: 83.135 | O123: 81.838 | P123: 91.927 | Q123: 107.58 | R123: 98.671
C124: 해운대구 | E124: 55.241 | F124: 63.697 | G124: 74.792 | H124: 70.492 | I124: 69.269 | J124: 70.46 | K124: 75.313 | L124: 80.028 | M124: 80.58 | N124: 76.665 | O124: 76.554 | P124: 90.762 | Q124: 110.236 | R124: 99.283
C125: 금정구 | E125: 63.286 | F125: 69.559 | G125: 83.886 | H125: 81.764 | I125: 81.698 | J125: 82.978 | K125: 87.04 | L125: 90.094 | M125: 92.006 | N125: 88.912 | O125: 87.207 | P125: 93.792 | Q125: 103.848 | R125: 97.993
C126: 동래구 | E126: 58.984 | F126: 67.83 | G126: 80.755 | H126: 78.495 | I126: 78.393 | J126: 79.191 | K126: 83.217 | L126: 87.885 | M126: 89.527 | N126: 86.357 | O126: 84.318 | P126: 93.453 | Q126: 105.923 | R126: 96.159
C127: 기장군 | E127: 60.326 | F127: 69.089 | G127: 83.816 | H127: 83.516 | I127: 82.714 | J127: 83.523 | K127: 87.978 | L127: 92.485 | M127: 93.796 | N127: 91.007 | O127: 87.375 | P127: 90.623 | Q127: 107.45 | R127: 102.026
B128: 서부산권 | H128: 87.574 | I128: 88.314 | J128: 89.227 | K128: 91.273 | L128: 94.365 | M128: 96.463 | N128: 92.818 | O128: 89.119 | P128: 93.558 | Q128: 105.231 | R128: 100.584
C129: 북구 | E129: 61.721 | F129: 75.105 | G129: 93.69 | H129: 87.193 | I129: 89.9 | J129: 90.924 | K129: 92.487 | L129: 95.528 | M129: 97.521 | N129: 93.991 | O129: 89.901 | P129: 94.19 | Q129: 105.511 | R129: 99.712
C130: 강서구 | H130: 88.132 | I130: 83.806 | J130: 84.435 | K130: 85.612 | L130: 88.301 | M130: 91.214 | N130: 87.524 | O130: 85.074 | P130: 91.386 | Q130: 104.353 | R130: 96.52
C131: 사상구 | E131: 57.442 | F131: 72.658 | G131: 92.511 | H131: 89.254 | I131: 88.933 | J131: 89.984 | K131: 93.29 | L131: 96.237 | M131: 97.695 | N131: 93.764 | O131: 90.136 | P131: 94.088 | Q131: 105.208 | R131: 100.748
C132: 사하구 | E132: 66.553 | F132: 79.725 | G132: 96.578 | H132: 87.737 | I132: 88.017 | J132: 88.779 | K132: 90.585 | L132: 93.938 | M132: 96.41 | N132: 92.838 | O132: 89.079 | P132: 93.331 | Q132: 105.285 | R132: 102.879
A133: 대구 | E133: 53.115 | F133: 54.354 | G133: 62.393 | H133: 65.873 | I133: 73.812 | J133: 79.222 | K133: 85.986 | L133: 83.343 | M133: 83.989 | N133: 86.538 | O133: 86.653 | P133: 93.323 | Q133: 100.567 | R133: 88.114
B134: 중구 | E134: 58.795 | F134: 59.003 | G134: 63.236 | H134: 65.477 | I134: 68.05 | J134: 70.186 | K134: 75.379 | L134: 74.199 | M134: 76.067 | N134: 82.268 | O134: 85.71 | P134: 92.591 | Q134: 99.901 | R134: 90.231
B135: 동구 | E135: 59.99 | F135: 59.494 | G135: 65.735 | H135: 69.396 | I135: 77.013 | J135: 83.793 | K135: 90.797 | L135: 88.565 | M135: 89.258 | N135: 89.929 | O135: 90.215 | P135: 93.715 | Q135: 100.056 | R135: 90.013
B136: 서구 | E136: 59.155 | F136: 60.379 | G136: 64.416 | H136: 68.009 | I136: 71.613 | J136: 76.369 | K136: 81.45 | L136: 80.517 | M136: 80.803 | N136: 83.009 | O136: 86.16 | P136: 94.426 | Q136: 100.178 | R136: 89.864
B137: 남구 | E137: 57.083 | F137: 57.091 | G137: 60.863 | H137: 64.453 | I137: 72.365 | J137: 78.317 | K137: 88.443 | L137: 84.628 | M137: 85.361 | N137: 87.396 | O137: 90.941 | P137: 95.212 | Q137: 100.512 | R137: 94.087
B138: 북구 | E138: 55.76 | F138: 56.989 | G138: 67.782 | H138: 71.424 | I138: 83.506 | J138: 87.647 | K138: 96.694 | L138: 93.319 | M138: 92.851 | N138: 94.068 | O138: 93.293 | P138: 94.865 | Q138: 100.36 | R138: 92.454
B139: 수성구 | E139: 43.255 | F139: 44.103 | G139: 50.96 | H139: 52.421 | I139: 57.628 | J139: 64.236 | K139: 70.926 | L139: 69.109 | M139: 71.643 | N139: 78.079 | O139: 78.195 | P139: 91.047 | Q139: 101.405 | R139: 86.066
B140: 달서구 | E140: 51.48 | F140: 53.485 | G140: 61.849 | H140: 66.1 | I140: 74.428 | J140: 79.058 | K140: 84.882 | L140: 82.127 | M140: 82.053 | N140: 83.526 | O140: 83.886 | P140: 93.353 | Q140: 100.245 | R140: 85.525
B141: 달성군 | E141: 61.507 | F141: 64.1 | G141: 73.877 | H141: 80.836 | I141: 89.563 | J141: 94.747 | K141: 97.782 | L141: 93.265 | M141: 92.852 | N141: 93.494 | O141: 91.692 | P141: 93.344 | Q141: 101.084 | R141: 86.004
A142: 광주 | E142: 62.436 | F142: 64.827 | G142: 79.467 | H142: 82.07 | I142: 83.025 | J142: 84.985 | K142: 91.065 | L142: 91.299 | M142: 92.072 | N142: 95.282 | O142: 94.833 | P142: 96.731 | Q142: 105.705 | R142: 101.405
B143: 동구 | E143: 70.012 | F143: 71.267 | G143: 80.376 | H143: 85.267 | I143: 86.166 | J143: 88.823 | K143: 94.221 | L143: 94.516 | M143: 94.188 | N143: 95.894 | O143: 95.105 | P143: 97.417 | Q143: 102.978 | R143: 97.791
B144: 서구 | E144: 61.777 | F144: 64.093 | G144: 77.359 | H144: 80.681 | I144: 81.9 | J144: 85.17 | K144: 90.895 | L144: 90.891 | M144: 91.754 | N144: 96.089 | O144: 96.416 | P144: 97.942 | Q144: 105.013 | R144: 101.676
B145: 남구 | E145: 62.374 | F145: 63.724 | G145: 76.52 | H145: 79.756 | I145: 80.792 | J145: 82.735 | K145: 88.147 | L145: 88.872 | M145: 90.41 | N145: 95.236 | O145: 94.029 | P145: 96.508 | Q145: 104.36 | R145: 100.376
B146: 북구 | E146: 64.187 | F146: 67.364 | G146: 85.164 | H146: 87.941 | I146: 88.583 | J146: 89.806 | K146: 96.039 | L146: 96.483 | M146: 96.002 | N146: 95.967 | O146: 95.105 | P146: 96.504 | Q146: 106.704 | R146: 102.707
B147: 광산구 | E147: 60.148 | F147: 62.419 | G147: 76.778 | H147: 77.971 | I147: 78.985 | J147: 80.473 | K147: 87.056 | L147: 87.031 | M147: 88.746 | N147: 93.8 | O147: 93.622 | P147: 95.993 | Q147: 106.446 | R147: 101.055
A148: 대전 | E148: 55.759 | F148: 61.193 | G148: 70.592 | H148: 68.185 | I148: 68.7 | J148: 68.935 | K148: 69.045 | L148: 69.188 | M148: 70.278 | N148: 72.055 | O148: 78.427 | P148: 92.58 | Q148: 105.238 | R148: 94.926
B149: 동구 | E149: 57.399 | F149: 62.99 | G149: 73.153 | H149: 71.736 | I149: 72.272 | J149: 73.668 | K149: 74.788 | L149: 75.344 | M149: 76.709 | N149: 76.448 | O149: 80.596 | P149: 93.873 | Q149: 105.888 | R149: 98.731
B150: 중구 | E150: 54.497 | F150: 59.215 | G150: 70.352 | H150: 69.763 | I150: 69.541 | J150: 69.624 | K150: 70.941 | L150: 71.029 | M150: 72.123 | N150: 72.947 | O150: 81.547 | P150: 92.512 | Q150: 105.526 | R150: 96.093
B151: 서구 | E151: 56.004 | F151: 61.778 | G151: 70.812 | H151: 67.464 | I151: 67.561 | J151: 67.304 | K151: 66.885 | L151: 66.969 | M151: 68.218 | N151: 71.687 | O151: 78.171 | P151: 92.582 | Q151: 104.618 | R151: 93.19
B152: 유성구 | E152: 55.322 | F152: 59.779 | G152: 66.712 | H152: 63.003 | I152: 64.403 | J152: 64.144 | K152: 63.594 | L152: 63.645 | M152: 64.401 | N152: 66.469 | O152: 74.384 | P152: 91.493 | Q152: 105.458 | R152: 92.872
B153: 대덕구 | E153: 59.019 | F153: 65.81 | G153: 77.768 | H153: 77.457 | I153: 78.403 | J153: 80.211 | K153: 80.792 | L153: 80.981 | M153: 82.053 | N153: 80.906 | O153: 82.069 | P153: 93.662 | Q153: 105.551 | R153: 99.53
A154: 울산 | E154: 73.464 | F154: 76.595 | G154: 89.456 | H154: 92.754 | I154: 93.04 | J154: 96.516 | K154: 100.602 | L154: 100.908 | M154: 98.403 | N154: 88.419 | O154: 85.837 | P154: 95.69 | Q154: 104.414 | R154: 96.78
B155: 중구 | E155: 65.136 | F155: 68.682 | G155: 78.29 | H155: 80.105 | I155: 81.859 | J155: 85.484 | K155: 93.573 | L155: 96.394 | M155: 94.948 | N155: 86.387 | O155: 83.846 | P155: 94.074 | Q155: 102.591 | R155: 94.962
B156: 남구 | E156: 66.391 | F156: 70.347 | G156: 82.318 | H156: 82.083 | I156: 82.068 | J156: 85.261 | K156: 87.606 | L156: 89.2 | M156: 88.467 | N156: 81.329 | O156: 81.192 | P156: 96.425 | Q156: 104.267 | R156: 95.634
B157: 동구 | E157: 91.228 | F157: 91.075 | G157: 104.577 | H157: 116.698 | I157: 115.375 | J157: 123.673 | K157: 123.725 | L157: 116.352 | M157: 112.111 | N157: 98.168 | O157: 93.534 | P157: 96.92 | Q157: 106.194 | R157: 97.587
B158: 북구 | E158: 77.998 | F158: 81.368 | G158: 97.384 | H158: 103.069 | I158: 102.549 | J158: 103.972 | K158: 108.549 | L158: 108.822 | M158: 102.604 | N158: 88.642 | O158: 84.793 | P158: 94.839 | Q158: 104.49 | R158: 96.839
B159: 울주군 | E159: 74.222 | F159: 77.931 | G159: 92.939 | H159: 96.659 | I159: 97.982 | J159: 100.172 | K159: 105.983 | L159: 106.727 | M159: 104.66 | N159: 95.34 | O159: 91.163 | P159: 95.993 | Q159: 104.802 | R159: 99.466
A160: 세종 | H160: 62.692 | I160: 66.51 | J160: 65.205 | K160: 64.614 | L160: 64.964 | M160: 67.783 | N160: 68.423 | O160: 67.794 | P160: 97.577 | Q160: 96.311 | R160: 79.819
A161: 강원 | E161: 76.741 | F161: 78.802 | G161: 94.785 | H161: 96.992 | I161: 97.324 | J161: 97.773 | K161: 101.044 | L161: 103.14 | M161: 105.388 | N161: 100.115 | O161: 93.614 | P161: 96.202 | Q161: 105.094 | R161: 104.43
B162: 춘천시 | E162: 79.154 | F162: 86.087 | G162: 105.022 | H162: 103.915 | I162: 102.207 | J162: 100.527 | K162: 101.782 | L162: 104.459 | M162: 105.862 | N162: 98.508 | O162: 91.235 | P162: 95.514 | Q162: 105.603 | R162: 101.685
B163: 원주시 | E163: 81.012 | F163: 80.566 | G163: 96.966 | H163: 100.871 | I163: 102.984 | J163: 103.516 | K163: 104.997 | L163: 107.112 | M163: 108.097 | N163: 100.591 | O163: 91.569 | P163: 95.62 | Q163: 104.598 | R163: 101.4
B164: 강릉시 | E164: 64.721 | F164: 64.968 | G164: 76.703 | H164: 81.335 | I164: 82.858 | J164: 84.754 | K164: 92.516 | L164: 93.275 | M164: 97.211 | N164: 96.41 | O164: 92.473 | P164: 94.524 | Q164: 107.035 | R164: 111.526
B165: 동해시 | H165: 98.74 | I165: 98.493 | J165: 98.973 | K165: 104.074 | L165: 108.068 | M165: 113.005 | N165: 107.189 | O165: 100.889 | P165: 99.235 | Q165: 102.305 | R165: 104.157
B166: 태백시 | H166: 97.885 | I166: 97.866 | J166: 99.069 | K166: 100.897 | L166: 100.137 | M166: 101.535 | N166: 100.041 | O166: 99.291 | P166: 99.406 | Q166: 100.41 | R166: 100.458
B167: 속초시 | H167: 95.818 | I167: 94.767 | J167: 97.554 | K167: 102.731 | L167: 105.839 | M167: 110.957 | N167: 104.476 | O167: 96.188 | P167: 96.57 | Q167: 113.367 | R167: 117.954
B168: 삼척시 | H168: 101.198 | I168: 102.027 | J168: 102.218 | K168: 104.402 | L168: 105.263 | M168: 106.886 | N168: 101.926 | O168: 99.242 | P168: 99.428 | Q168: 101.597 | R168: 101.51
A169: 충북 | E169: 74.627 | F169: 79.678 | G169: 95.414 | H169: 98.497 | I169: 100.133 | J169: 103.883 | K169: 105.923 | L169: 104.36 | M169: 102.07 | N169: 95.706 | O169: 90.091 | P169: 95.092 | Q169: 106.917 | R169: 103.876
B170: 청주시 | H170: 96.187 | I170: 97.612 | J170: 102.125 | K170: 103.632 | L170: 101.406 | M170: 98.96 | N170: 93.664 | O170: 87.881 | P170: 94.647 | Q170: 106.101 | R170: 101.288
C171: 상당구 | H171: 104.912 | I171: 106.464 | J171: 111.229 | K171: 111.484 | L171: 109.129 | M171: 106.709 | N171: 99.725 | O171: 92.46 | P171: 96.236 | Q171: 106.273 | R171: 101.222
C172: 서원구 | H172: 103.236 | I172: 104.673 | J172: 108.722 | K172: 110.422 | L172: 106.514 | M172: 103.217 | N172: 96.096 | O172: 89.838 | P172: 94.769 | Q172: 107.169 | R172: 102.224
C173: 흥덕구 | H173: 87.105 | I173: 88.261 | J173: 93.346 | K173: 95.545 | L173: 93.98 | M173: 92.633 | N173: 90.298 | O173: 84.422 | P173: 93.506 | Q173: 106.225 | R173: 101.889
C174: 청원구 | H174: 93.65 | I174: 95.389 | J174: 99.368 | K174: 100.622 | L174: 99.56 | M174: 96.477 | N174: 90.444 | O174: 86.518 | P174: 94.632 | Q174: 104.638 | R174: 99.503
B175: 충주시 | E175: 74.941 | F175: 84.769 | G175: 99.442 | H175: 103.462 | I175: 105.167 | J175: 106.197 | K175: 108.925 | L175: 109.215 | M175: 107.115 | N175: 94.489 | O175: 87.717 | P175: 95.109 | Q175: 110.189 | R175: 110.278
B176: 제천시 | H176: 104.695 | I176: 107.41 | J176: 109.269 | K176: 114.371 | L176: 114.261 | M176: 110.215 | N176: 104.61 | O176: 97.758 | P176: 95.252 | Q176: 111.635 | R176: 113.99
B177: 음성군 | H177: 100.281 | I177: 102.405 | J177: 105.978 | K177: 109.749 | L177: 110.036 | M177: 108.721 | N177: 102.164 | O177: 98.584 | P177: 95.011 | Q177: 103.676 | R177: 103.82
A178: 충남 | E178: 77.033 | F178: 78.214 | G178: 88.238 | H178: 93.532 | I178: 97.806 | J178: 101.883 | K178: 102.374 | L178: 99.168 | M178: 96.501 | N178: 91.98 | O178: 89.284 | P178: 94.64 | Q178: 106.687 | R178: 103.087
B179: 천안시 | E179: 72.429 | F179: 72.816 | G179: 82.161 | H179: 88.956 | I179: 94.772 | J179: 100.748 | K179: 100.146 | L179: 95.374 | M179: 91.955 | N179: 87.64 | O179: 85.756 | P179: 94.315 | Q179: 107.425 | R179: 101.361
C180: 동남구 | E180: 76.196 | F180: 76.224 | G180: 85.986 | H180: 92.589 | I180: 99.757 | J180: 107.026 | K180: 106.274 | L180: 100.858 | M180: 98.08 | N180: 92.207 | O180: 88 | P180: 94.348 | Q180: 106.484 | R180: 103.621
C181: 서북구 | E181: 70.592 | F181: 71.156 | G181: 80.365 | H181: 87.326 | I181: 92.333 | J181: 97.55 | K181: 97.033 | L181: 92.601 | M181: 88.813 | N181: 85.317 | O181: 84.59 | P181: 94.297 | Q181: 107.947 | R181: 100.138
B182: 공주시 | E182: 78.705 | F182: 78.88 | G182: 85.786 | H182: 89.715 | I182: 92.553 | J182: 93.521 | K182: 92.378 | L182: 90.983 | M182: 90.628 | N182: 85.673 | O182: 82.534 | P182: 92.784 | Q182: 103.579 | R182: 102.005
B183: 보령시 | H183: 105.439 | I183: 108.01 | J183: 114.337 | K183: 117.988 | L183: 116.595 | M183: 112.079 | N183: 103.626 | O183: 97.295 | P183: 96.696 | Q183: 108.698 | R183: 110.148
B184: 아산시 | E184: 74.194 | F184: 75.54 | G184: 85.042 | H184: 92.014 | I184: 96.238 | J184: 99.659 | K184: 100.847 | L184: 97.762 | M184: 94.341 | N184: 90.134 | O184: 87.442 | P184: 91.626 | Q184: 108.113 | R184: 105.117
B185: 서산시 | H185: 111.663 | I185: 113.695 | J185: 115.971 | K185: 118.757 | L185: 116.193 | M185: 112.95 | N185: 104.012 | O185: 98.421 | P185: 98.177 | Q185: 105.845 | R185: 107.045
B186: 논산시 | E186: 77.88 | F186: 84.424 | G186: 100.306 | H186: 99.943 | I186: 100.683 | J186: 100.609 | K186: 98.423 | L186: 97.109 | M186: 97.408 | N186: 95.843 | O186: 93.468 | P186: 97.318 | Q186: 103.525 | R186: 104.474
B187: 계룡시 | E187: 76.859 | F187: 81.472 | G187: 90.43 | H187: 88.846 | I187: 88.626 | J187: 85.465 | K187: 81.69 | L187: 81.654 | M187: 84.732 | N187: 83.01 | O187: 81.802 | P187: 91.206 | Q187: 104.361 | R187: 94.711
B188: 홍성군 | H188: 89.323 | I188: 90.529 | J188: 89.22 | K188: 88.373 | L188: 86.592 | M188: 84.632 | N188: 83.016 | O188: 82.958 | P188: 89.537 | Q188: 105.61 | R188: 103.475
B189: 예산군 | H189: 94.48 | I189: 98.589 | J189: 104.297 | K189: 106.884 | L189: 103.216 | M189: 101.277 | N189: 96.688 | O189: 96.649 | P189: 95.969 | Q189: 102.499 | R189: 102.048
B190: 당진시 | H190: 104.898 | I190: 108.519 | J190: 111.678 | K190: 116.463 | L190: 115.267 | M190: 114.424 | N190: 108.957 | O190: 103.553 | P190: 101.572 | Q190: 105.407 | R190: 102.408
A191: 전북 | E191: 79.591 | F191: 88.768 | G191: 104.006 | H191: 101.438 | I191: 100.215 | J191: 99.421 | K191: 99.973 | L191: 99.842 | M191: 101.248 | N191: 99.221 | O191: 95.228 | P191: 97.818 | Q191: 105.355 | R191: 104.845
B192: 전주시 | E192: 74.054 | F192: 87.28 | G192: 101.86 | H192: 97.097 | I192: 96.09 | J192: 95.447 | K192: 97.048 | L192: 97.654 | M192: 99.401 | N192: 97.955 | O192: 92.209 | P192: 97.325 | Q192: 106.292 | R192: 105.827
C193: 완산구 | E193: 73.871 | F193: 86.666 | G193: 101.863 | H193: 97.735 | I193: 96.861 | J193: 95.834 | K193: 97.027 | L193: 98.292 | M193: 100.283 | N193: 99.048 | O193: 92.852 | P193: 96.991 | Q193: 106.204 | R193: 105.911
C194: 덕진구 | E194: 74.5 | F194: 88.438 | G194: 102.032 | H194: 96.392 | I194: 95.205 | J194: 95.081 | K194: 97.234 | L194: 96.991 | M194: 98.431 | N194: 96.726 | O194: 91.492 | P194: 97.701 | Q194: 106.383 | R194: 105.739
B195: 군산시 | E195: 98.375 | F195: 97.839 | G195: 117.921 | H195: 117.636 | I195: 115.728 | J195: 114.256 | K195: 112.755 | L195: 109.459 | M195: 108.08 | N195: 100.269 | O195: 96.478 | P195: 97.125 | Q195: 108.233 | R195: 107.517
B196: 익산시 | E196: 81.277 | F196: 87.157 | G196: 100.652 | H196: 98.397 | I196: 95.447 | J196: 94.11 | K196: 94.133 | L196: 95.499 | M196: 99.162 | N196: 100.789 | O196: 98.825 | P196: 99.197 | Q196: 101.728 | R196: 101.099
B197: 정읍시 | H197: 100.204 | I197: 98.569 | J197: 98.417 | K197: 98.963 | L197: 98.751 | M197: 99.08 | N197: 97.33 | O197: 97.284 | P197: 97.738 | Q197: 104.414 | R197: 104.653
B198: 남원시 | H198: 94.321 | I198: 97.836 | J198: 100.66 | K198: 99.451 | L198: 98.475 | M198: 99.947 | N198: 102.07 | O198: 101.362 | P198: 99.66 | Q198: 102.69 | R198: 104.645
B199: 김제시 | H199: 96.601 | I199: 97.376 | J199: 98.012 | K199: 98.29 | L199: 96.533 | M199: 96.806 | N199: 96.88 | O199: 97.474 | P199: 98.686 | Q199: 101.74 | R199: 102.945
A200: 전남 | E200: 75.999 | F200: 80.834 | G200: 93.099 | H200: 94.918 | I200: 92.78 | J200: 91.16 | K200: 92.023 | L200: 93.467 | M200: 95.597 | N200: 97.187 | O200: 97.247 | P200: 98.952 | Q200: 102.093 | R200: 97.76
B201: 목포시 | E201: 76.95 | F201: 83.643 | G201: 102.913 | H201: 106.578 | I201: 102.738 | J201: 101.22 | K201: 103.83 | L201: 104.221 | M201: 106.34 | N201: 105.027 | O201: 103.238 | P201: 100.753 | Q201: 101.867 | R201: 99.7
B202: 여수시 | E202: 71.508 | F202: 76.177 | G202: 82.178 | H202: 82.54 | I202: 81.849 | J202: 80.839 | K202: 81.186 | L202: 83.967 | M202: 88.061 | N202: 92.132 | O202: 92.67 | P202: 97.274 | Q202: 102.269 | R202: 95.336
B203: 순천시 | E203: 79.826 | F203: 82.596 | G203: 93.658 | H203: 93.603 | I203: 90.224 | J203: 87.505 | K203: 86.115 | L203: 88.493 | M203: 90.479 | N203: 92.515 | O203: 93.894 | P203: 98.818 | Q203: 101.926 | R203: 96.895
... 34 more rows
